[Event "Titled Tuesday Blitz February 01 B 2022"]
[White "Papp, Levente"]
[Black "Sjugirov, Sanan"]
[WhiteFideId "751243"]
[BlackFideId "4189302"]
[WhiteElo "2308"]
[BlackElo "2602"]
[Result "1/2-1/2"]
[Round "02"]
[TimeControl "180+1"]
[Date "2022.02.01"]
[WhiteClock "0:00:10"]
[BlackClock "0:00:06"]

1. c4 {[%clk 0:03:00]}  e5 {[%clk 0:02:56]} 2. g3 {[%clk 0:03:00]}  Nc6 {[%clk 0:02:55]} 3. Nc3 {[%clk 0:03:00]}  g6 {[%clk 0:02:56]} 4. Bg2 {[%clk 0:03:00]}  Bg7 {[%clk 0:02:56]} 5. e3 {[%clk 0:03:00]}  d6 {[%clk 0:02:55]} 6. Nge2 {[%clk 0:03:00]}  Be6 {[%clk 0:02:52]} 7. Nd5 {[%clk 0:02:56]}  Qd7 {[%clk 0:02:45]} 8. d4 {[%clk 0:02:47]}  Nd8 {[%clk 0:02:02]} 9. b3 {[%clk 0:02:41]}  c6 {[%clk 0:01:58]} 10. Ndc3 {[%clk 0:02:41]}  Ne7 {[%clk 0:01:50]} 11. dxe5 {[%clk 0:02:37]}  dxe5 {[%clk 0:01:48]} 12. Qxd7+ {[%clk 0:02:36]}  Bxd7 {[%clk 0:01:48]} 13. Ba3 {[%clk 0:02:37]}  f5 {[%clk 0:01:46]} 14. Rd1 {[%clk 0:02:12]}  Ne6 {[%clk 0:01:37]} 15. h4 {[%clk 0:01:43]}  e4 {[%clk 0:01:28]} 16. Nd4 {[%clk 0:01:31]}  Rd8 {[%clk 0:01:22]} 17. Nce2 {[%clk 0:01:27]}  Kf7 {[%clk 0:01:19]} 18. O-O {[%clk 0:01:22]}  b6 {[%clk 0:01:15]} 19. Nxe6 {[%clk 0:00:54]}  Bxe6 {[%clk 0:01:14]} 20. f3 {[%clk 0:00:54]}  exf3 {[%clk 0:01:11]} 21. Bxf3 {[%clk 0:00:55]}  c5 {[%clk 0:01:07]} 22. Nf4 {[%clk 0:00:51]}  Bf6 {[%clk 0:00:34]} 23. Nxe6 {[%clk 0:00:44]}  Kxe6 {[%clk 0:00:34]} 24. e4 {[%clk 0:00:44]}  Rxd1 {[%clk 0:00:28]} 25. Rxd1 {[%clk 0:00:43]}  Bd4+ {[%clk 0:00:29]} 26. Kg2 {[%clk 0:00:43]}  Rf8 {[%clk 0:00:27]} 27. exf5+ {[%clk 0:00:37]}  Nxf5 {[%clk 0:00:27]} 28. Bc1 {[%clk 0:00:37]}  Kf6 {[%clk 0:00:20]} 29. Bg5+ {[%clk 0:00:28]}  Kg7 {[%clk 0:00:19]} 30. g4 {[%clk 0:00:28]}  Nd6 {[%clk 0:00:13]} 31. Re1 {[%clk 0:00:26]}  Bf6 {[%clk 0:00:08]} 32. Bd5 {[%clk 0:00:09]}  Bxg5 {[%clk 0:00:05]} 33. hxg5 {[%clk 0:00:10]}  Re8 {[%clk 0:00:06]} 34. Rxe8 {[%clk 0:00:09]}  Nxe8 {[%clk 0:00:07]} 35. Kf3 {[%clk 0:00:09]}  h6 {[%clk 0:00:06]} 36. gxh6+ {[%clk 0:00:09]}  Kxh6 {[%clk 0:00:07]} 37. Kf4 {[%clk 0:00:09]}  Kg7 {[%clk 0:00:05]} 38. g5 {[%clk 0:00:09]}  Kf8 {[%clk 0:00:05]} 39. Ke5 {[%clk 0:00:09]}  Ke7 {[%clk 0:00:06]} 40. Be4 {[%clk 0:00:10]}  Kf7 {[%clk 0:00:06]} 41. Kd5 {[%clk 0:00:10]}  Nc7+ {[%clk 0:00:06]} 42. Kc6 {[%clk 0:00:10]}  Ne6 {[%clk 0:00:06]} 43. Bd5 {[%clk 0:00:11]}  Ke7 {[%clk 0:00:07]} 44. Be4 {[%clk 0:00:11]}  Kf7 {[%clk 0:00:06]} 45. Bd5 {[%clk 0:00:11]}  Ke7 {[%clk 0:00:07]} 46. Be4 {[%clk 0:00:10]}  Nxg5 {[%clk 0:00:04]} 47. Bxg6 {[%clk 0:00:10]}  Nf3 {[%clk 0:00:05]} 48. Kb7 {[%clk 0:00:11]}  Kd6 {[%clk 0:00:03]} 49. Kxa7 {[%clk 0:00:08]}  Kc7 {[%clk 0:00:03]} 50. Ka6 {[%clk 0:00:08]}  Nd4 {[%clk 0:00:03]} 51. Be4 {[%clk 0:00:07]}  Ne2 {[%clk 0:00:03]} 52. Bd3 {[%clk 0:00:06]}  Nc1 {[%clk 0:00:02]} 53. Bb1 {[%clk 0:00:06]}  Ne2 {[%clk 0:00:03]} 54. a3 {[%clk 0:00:06]}  Nd4 {[%clk 0:00:02]} 55. b4 {[%clk 0:00:06]}  cxb4 {[%clk 0:00:02]} 56. axb4 {[%clk 0:00:07]}  Nc6 {[%clk 0:00:03]} 57. Kb5 {[%clk 0:00:07]}  Nd4+ {[%clk 0:00:03]} 58. Ka4 {[%clk 0:00:07]}  Nc6 {[%clk 0:00:04]} 59. c5 {[%clk 0:00:07]}  bxc5 {[%clk 0:00:05]} 60. bxc5 {[%clk 0:00:08]}  Ne5 {[%clk 0:00:05]} 61. Be4 {[%clk 0:00:08]}  Nd7 {[%clk 0:00:05]} 62. c6 {[%clk 0:00:09]}  Ne5 {[%clk 0:00:06]} 63. Kb5 {[%clk 0:00:10]}  Nxc6 {[%clk 0:00:06]} 1/2-1/2


[Site "https://www.chess.com"]

[Event "Titled Tuesday Blitz February 01 B 2022"]
[White "Praggnanandhaa R"]
[Black "Nazaretyan, Tigran"]
[WhiteFideId "25059530"]
[BlackFideId "24162345"]
[WhiteElo "2599"]
[BlackElo "2192"]
[Result "1-0"]
[Round "02"]
[TimeControl "180+1"]
[Date "2022.02.01"]
[WhiteClock "0:00:58"]
[BlackClock "0:01:02"]

1. Nf3 {[%clk 0:03:00]}  Nf6 {[%clk 0:02:58]} 2. b3 {[%clk 0:03:00]}  g6 {[%clk 0:02:55]} 3. Bb2 {[%clk 0:03:00]}  Bg7 {[%clk 0:02:55]} 4. g3 {[%clk 0:02:59]}  O-O {[%clk 0:02:55]} 5. Bg2 {[%clk 0:02:58]}  b6 {[%clk 0:02:56]} 6. Ne5 {[%clk 0:02:54]}  c6 {[%clk 0:02:49]} 7. d4 {[%clk 0:02:51]}  Bb7 {[%clk 0:02:46]} 8. O-O {[%clk 0:02:48]}  d6 {[%clk 0:02:46]} 9. Nd3 {[%clk 0:02:46]}  Qc7 {[%clk 0:02:43]} 10. c4 {[%clk 0:02:46]}  Nbd7 {[%clk 0:02:42]} 11. Nc3 {[%clk 0:02:41]}  a6 {[%clk 0:02:40]} 12. Rc1 {[%clk 0:02:39]}  c5 {[%clk 0:02:38]} 13. d5 {[%clk 0:02:33]}  e5 {[%clk 0:02:35]} 14. dxe6 {[%clk 0:02:26]}  Bxg2 {[%clk 0:02:34]} 15. exf7+ {[%clk 0:02:23]}  Rxf7 {[%clk 0:02:34]} 16. Kxg2 {[%clk 0:02:23]}  Qc6+ {[%clk 0:02:29]} 17. Kg1 {[%clk 0:02:21]}  Raf8 {[%clk 0:02:28]} 18. Nf4 {[%clk 0:02:19]}  Ne5 {[%clk 0:02:20]} 19. Ncd5 {[%clk 0:02:16]}  Nxd5 {[%clk 0:02:17]} 20. cxd5 {[%clk 0:02:11]}  Qd7 {[%clk 0:02:15]} 21. Ne6 {[%clk 0:02:01]}  Re8 {[%clk 0:02:02]} 22. Qc2 {[%clk 0:01:52]}  Rxe6 {[%clk 0:01:58]} 23. dxe6 {[%clk 0:01:52]}  Qxe6 {[%clk 0:01:58]} 24. Bxe5 {[%clk 0:01:41]}  Bxe5 {[%clk 0:01:57]} 25. e3 {[%clk 0:01:41]}  b5 {[%clk 0:01:57]} 26. a4 {[%clk 0:01:36]}  b4 {[%clk 0:01:57]} 27. a5 {[%clk 0:01:32]}  Bc3 {[%clk 0:01:56]} 28. Rcd1 {[%clk 0:01:25]}  d5 {[%clk 0:01:56]} 29. Rd3 {[%clk 0:01:18]}  c4 {[%clk 0:01:53]} 30. Rxc3 {[%clk 0:01:19]}  bxc3 {[%clk 0:01:53]} 31. Qxc3 {[%clk 0:01:20]}  Rc7 {[%clk 0:01:50]} 32. bxc4 {[%clk 0:01:11]}  dxc4 {[%clk 0:01:49]} 33. Rd1 {[%clk 0:01:11]}  Kf7 {[%clk 0:01:41]} 34. Rd4 {[%clk 0:01:11]}  g5 {[%clk 0:01:37]} 35. e4 {[%clk 0:01:10]}  h5 {[%clk 0:01:33]} 36. Kg2 {[%clk 0:01:09]}  g4 {[%clk 0:01:24]} 37. Qe3 {[%clk 0:01:04]}  Qf6 {[%clk 0:01:18]} 38. Rd5 {[%clk 0:01:00]}  c3 {[%clk 0:01:12]} 39. Rf5 {[%clk 0:01:00]}  Qxf5 {[%clk 0:01:10]} 40. exf5 {[%clk 0:01:01]}  c2 {[%clk 0:01:10]} 41. Qe6+ {[%clk 0:01:02]}  Kf8 {[%clk 0:01:03]} 42. Qd6+ {[%clk 0:01:02]}  Re7 {[%clk 0:01:02]} 43. Qc5 {[%clk 0:01:02]}  Kf7 {[%clk 0:01:02]} 44. Qxc2 {[%clk 0:01:01]}  Re5 {[%clk 0:01:02]} 45. Qc4+ {[%clk 0:01:01]}  Kf6 {[%clk 0:01:02]} 46. Qxa6+ {[%clk 0:01:01]}  Kxf5 {[%clk 0:01:03]} 47. Qd3+ {[%clk 0:01:01]}  Kg5 {[%clk 0:01:03]} 48. a6 {[%clk 0:01:01]}  h4 {[%clk 0:01:02]} 49. gxh4+ {[%clk 0:00:58]}  Kxh4 {[%clk 0:01:03]} 50. Qg3+ {[%clk 0:00:57]}  Kg5 {[%clk 0:01:02]} 51. Qxe5+ {[%clk 0:00:58]} 1-0


[Site "https://www.chess.com"]

[Event "Titled Tuesday Blitz February 01 B 2022"]
[White "Pranav, V"]
[Black "Abdyzhapar, Asylbek"]
[WhiteFideId "25060783"]
[BlackFideId "13800337"]
[WhiteElo "2349"]
[BlackElo "2331"]
[Result "1-0"]
[Round "02"]
[TimeControl "180+1"]
[Date "2022.02.01"]
[WhiteClock "0:02:06"]
[BlackClock "0:00:25"]

1. e4 {[%clk 0:03:00]}  c5 {[%clk 0:03:00]} 2. Nf3 {[%clk 0:03:00]}  d6 {[%clk 0:02:59]} 3. Bb5+ {[%clk 0:02:59]}  Nd7 {[%clk 0:02:59]} 4. d4 {[%clk 0:02:58]}  a6 {[%clk 0:02:56]} 5. Bxd7+ {[%clk 0:02:58]}  Bxd7 {[%clk 0:02:56]} 6. dxc5 {[%clk 0:02:59]}  dxc5 {[%clk 0:02:56]} 7. Nc3 {[%clk 0:02:59]}  Bc6 {[%clk 0:02:55]} 8. Qe2 {[%clk 0:02:59]}  e6 {[%clk 0:02:51]} 9. Ne5 {[%clk 0:02:59]}  Qc7 {[%clk 0:02:49]} 10. Nxc6 {[%clk 0:02:51]}  Qxc6 {[%clk 0:02:48]} 11. O-O {[%clk 0:02:51]}  Nf6 {[%clk 0:02:48]} 12. e5 {[%clk 0:02:50]}  Nd5 {[%clk 0:02:47]} 13. Ne4 {[%clk 0:02:51]}  Be7 {[%clk 0:02:45]} 14. c4 {[%clk 0:02:51]}  Nb6 {[%clk 0:02:40]} 15. Re1 {[%clk 0:02:50]}  O-O {[%clk 0:02:30]} 16. b3 {[%clk 0:02:50]}  Rfd8 {[%clk 0:02:28]} 17. Qg4 {[%clk 0:02:48]}  g6 {[%clk 0:02:23]} 18. Bg5 {[%clk 0:02:45]}  Bxg5 {[%clk 0:02:16]} 19. Qxg5 {[%clk 0:02:46]}  Rd4 {[%clk 0:02:12]} 20. Nf6+ {[%clk 0:02:30]}  Kg7 {[%clk 0:02:11]} 21. Ng4 {[%clk 0:02:24]}  Nd7 {[%clk 0:01:47]} 22. Re3 {[%clk 0:02:20]}  Kh8 {[%clk 0:00:49]} 23. Rh3 {[%clk 0:02:10]}  Rxg4 {[%clk 0:00:38]} 24. Qxg4 {[%clk 0:02:08]}  Nxe5 {[%clk 0:00:38]} 25. Qf4 {[%clk 0:02:07]}  Qd6 {[%clk 0:00:28]} 26. Qh6 {[%clk 0:02:05]}  Kg8 {[%clk 0:00:24]} 27. Qxh7+ {[%clk 0:02:05]}  Kf8 {[%clk 0:00:25]} 28. Qh8+ {[%clk 0:02:06]}  Ke7 {[%clk 0:00:25]} 29. Qxa8 {[%clk 0:02:07]}  Qd4 {[%clk 0:00:25]} 30. Qxb7+ {[%clk 0:02:06]}  Kf6 {[%clk 0:00:25]} 31. Rf1 {[%clk 0:02:06]} 1-0


[Site "https://www.chess.com"]

[Event "Titled Tuesday Blitz February 01 B 2022"]
[White "Ronka, Erik"]
[Black "Svane, Frederik"]
[WhiteFideId "505080"]
[BlackFideId "12923044"]
[WhiteElo "2264"]
[BlackElo "2459"]
[Result "0-1"]
[Round "02"]
[TimeControl "180+1"]
[Date "2022.02.01"]
[WhiteClock "0:02:13"]
[BlackClock "0:02:45"]

1. d4 {[%clk 0:03:00]}  Nf6 {[%clk 0:02:59]} 2. Nf3 {[%clk 0:03:01]}  e6 {[%clk 0:02:58]} 3. g3 {[%clk 0:03:02]}  d5 {[%clk 0:02:57]} 4. Bg2 {[%clk 0:03:02]}  b5 {[%clk 0:02:55]} 5. O-O {[%clk 0:03:03]}  Be7 {[%clk 0:02:55]} 6. a4 {[%clk 0:03:03]}  b4 {[%clk 0:02:56]} 7. c4 {[%clk 0:03:03]}  bxc3 {[%clk 0:02:56]} 8. Nxc3 {[%clk 0:03:04]}  O-O {[%clk 0:02:56]} 9. Bf4 {[%clk 0:03:03]}  a5 {[%clk 0:02:56]} 10. Nb5 {[%clk 0:02:59]}  c6 {[%clk 0:02:53]} 11. Nc7 {[%clk 0:02:37]}  Ra7 {[%clk 0:02:49]} 12. Nxe6 {[%clk 0:02:31]}  Bxe6 {[%clk 0:02:48]} 13. Bxb8 {[%clk 0:02:32]}  Qxb8 {[%clk 0:02:49]} 14. Ne5 {[%clk 0:02:16]}  Rc8 {[%clk 0:02:45]} 15. Qc2 {[%clk 0:02:13]}  c5 {[%clk 0:02:45]} 0-1


[Site "https://www.chess.com"]

[Event "Titled Tuesday Blitz February 01 B 2022"]
[White "Sadovsky, Artem"]
[Black "Bluebaum, Matthias"]
[WhiteFideId "4155840"]
[BlackFideId "24651516"]
[WhiteElo "2369"]
[BlackElo "2550"]
[Result "0-1"]
[Round "02"]
[TimeControl "180+1"]
[Date "2022.02.01"]
[WhiteClock "0:00:04"]
[BlackClock "0:01:40"]

1. Nf3 {[%clk 0:03:00]}  d5 {[%clk 0:02:59]} 2. e3 {[%clk 0:03:01]}  Nf6 {[%clk 0:02:59]} 3. c4 {[%clk 0:03:02]}  e6 {[%clk 0:03:00]} 4. b3 {[%clk 0:03:02]}  Bd6 {[%clk 0:03:01]} 5. Bb2 {[%clk 0:03:03]}  O-O {[%clk 0:03:01]} 6. Be2 {[%clk 0:03:03]}  Re8 {[%clk 0:03:02]} 7. d4 {[%clk 0:03:04]}  b6 {[%clk 0:03:01]} 8. O-O {[%clk 0:03:04]}  Bb7 {[%clk 0:03:02]} 9. cxd5 {[%clk 0:03:05]}  exd5 {[%clk 0:03:03]} 10. Ne5 {[%clk 0:03:04]}  c5 {[%clk 0:02:58]} 11. f4 {[%clk 0:03:01]}  Nc6 {[%clk 0:02:59]} 12. Nd2 {[%clk 0:02:57]}  Rc8 {[%clk 0:02:50]} 13. Ndf3 {[%clk 0:02:55]}  Ne4 {[%clk 0:02:49]} 14. Rc1 {[%clk 0:02:18]}  f6 {[%clk 0:02:45]} 15. Nxc6 {[%clk 0:02:18]}  Bxc6 {[%clk 0:02:46]} 16. Ba6 {[%clk 0:02:13]}  Rc7 {[%clk 0:02:45]} 17. Re1 {[%clk 0:01:51]}  Rce7 {[%clk 0:02:29]} 18. dxc5 {[%clk 0:01:46]}  Nxc5 {[%clk 0:02:27]} 19. Bf1 {[%clk 0:01:42]}  Qd7 {[%clk 0:02:17]} 20. Nd4 {[%clk 0:01:35]}  Bxf4 {[%clk 0:02:13]} 21. Nxc6 {[%clk 0:01:12]}  Qxc6 {[%clk 0:02:08]} 22. b4 {[%clk 0:01:06]}  Rxe3 {[%clk 0:02:04]} 23. Rxe3 {[%clk 0:00:58]}  Bxe3+ {[%clk 0:02:04]} 24. Kh1 {[%clk 0:00:59]}  Ne4 {[%clk 0:01:47]} 25. Rc2 {[%clk 0:00:02]}  Nf2+ {[%clk 0:01:44]} 26. Rxf2 {[%clk 0:00:03]}  Bxf2 {[%clk 0:01:45]} 27. Be2 {[%clk 0:00:04]}  Qe6 {[%clk 0:01:40]} 0-1


[Site "https://www.chess.com"]

[Event "Titled Tuesday Blitz February 01 B 2022"]
[White "Suder, Jakub"]
[Black "Bok, Benjamin"]
[WhiteFideId "1195310"]
[BlackFideId "1017063"]
[WhiteElo "2058"]
[BlackElo "2658"]
[Result "0-1"]
[Round "02"]
[TimeControl "180+1"]
[Date "2022.02.01"]
[WhiteClock "0:00:13"]
[BlackClock "0:00:03"]

1. d4 {[%clk 0:03:00]}  d5 {[%clk 0:02:59]} 2. c4 {[%clk 0:02:58]}  c6 {[%clk 0:03:00]} 3. cxd5 {[%clk 0:02:58]}  cxd5 {[%clk 0:03:01]} 4. Bg5 {[%clk 0:02:57]}  Nc6 {[%clk 0:03:00]} 5. Nc3 {[%clk 0:02:57]}  f6 {[%clk 0:02:41]} 6. Bd2 {[%clk 0:02:56]}  e6 {[%clk 0:02:29]} 7. Nf3 {[%clk 0:02:53]}  Bd6 {[%clk 0:02:20]} 8. e4 {[%clk 0:02:53]}  Nge7 {[%clk 0:02:19]} 9. Rc1 {[%clk 0:02:51]}  O-O {[%clk 0:02:16]} 10. Bd3 {[%clk 0:02:51]}  dxe4 {[%clk 0:02:06]} 11. Nxe4 {[%clk 0:02:51]}  Bc7 {[%clk 0:02:00]} 12. O-O {[%clk 0:02:49]}  Bb6 {[%clk 0:01:59]} 13. Nc5 {[%clk 0:02:38]}  Nxd4 {[%clk 0:01:51]} 14. Nxd4 {[%clk 0:02:35]}  Qxd4 {[%clk 0:01:50]} 15. Rc4 {[%clk 0:02:14]}  Qd8 {[%clk 0:01:48]} 16. Qf3 {[%clk 0:01:48]}  Ng6 {[%clk 0:01:31]} 17. Bc3 {[%clk 0:01:41]}  e5 {[%clk 0:01:24]} 18. Rd1 {[%clk 0:01:23]}  Qe7 {[%clk 0:01:15]} 19. Bb4 {[%clk 0:01:23]}  Rd8 {[%clk 0:01:08]} 20. Ne4 {[%clk 0:01:12]}  Qe6 {[%clk 0:01:07]} 21. Rc3 {[%clk 0:00:58]}  Qe8 {[%clk 0:00:04]} 22. Nd6 {[%clk 0:00:30]}  Rxd6 {[%clk 0:00:04]} 23. Bxd6 {[%clk 0:00:29]}  Be6 {[%clk 0:00:05]} 24. Qxb7 {[%clk 0:00:25]}  Rd8 {[%clk 0:00:05]} 25. Ba3 {[%clk 0:00:16]}  Nf4 {[%clk 0:00:04]} 26. Bc2 {[%clk 0:00:14]}  Ne2+ {[%clk 0:00:03]} 27. Kf1 {[%clk 0:00:14]}  Nxc3 {[%clk 0:00:03]} 28. bxc3 {[%clk 0:00:14]}  Rxd1+ {[%clk 0:00:02]} 29. Bxd1 {[%clk 0:00:15]}  Bxa2 {[%clk 0:00:02]} 30. Be2 {[%clk 0:00:13]}  Be6 {[%clk 0:00:02]} 31. h3 {[%clk 0:00:12]}  Qd7 {[%clk 0:00:02]} 32. Qa8+ {[%clk 0:00:10]}  Qc8 {[%clk 0:00:02]} 33. Qf3 {[%clk 0:00:09]}  a5 {[%clk 0:00:01]} 34. Qd3 {[%clk 0:00:09]}  Bc5 {[%clk 0:00:01]} 35. Bb2 {[%clk 0:00:09]}  Bf8 {[%clk 0:00:01]} 36. c4 {[%clk 0:00:09]}  a4 {[%clk 0:00:01]} 37. Ba3 {[%clk 0:00:09]}  Bxa3 {[%clk 0:00:02]} 38. Qxa3 {[%clk 0:00:10]}  Qc6 {[%clk 0:00:01]} 39. c5 {[%clk 0:00:09]}  Kf7 {[%clk 0:00:01]} 40. Qb4 {[%clk 0:00:10]}  Bd5 {[%clk 0:00:02]} 41. Qa3 {[%clk 0:00:11]}  Bxg2+ {[%clk 0:00:01]} 42. Ke1 {[%clk 0:00:11]}  Bd5 {[%clk 0:00:02]} 43. Bd3 {[%clk 0:00:12]}  e4 {[%clk 0:00:02]} 44. Be2 {[%clk 0:00:13]}  f5 {[%clk 0:00:02]} 45. Qb2 {[%clk 0:00:13]}  Qxc5 {[%clk 0:00:02]} 46. Qb8 {[%clk 0:00:13]}  a3 {[%clk 0:00:02]} 47. Bd1 {[%clk 0:00:12]}  a2 {[%clk 0:00:02]} 48. Qe5 {[%clk 0:00:12]}  Qa5+ {[%clk 0:00:02]} 49. Kf1 {[%clk 0:00:13]}  Bc4+ {[%clk 0:00:02]} 50. Kg2 {[%clk 0:00:13]}  Qxe5 {[%clk 0:00:02]} 51. Bc2 {[%clk 0:00:13]}  a1=Q {[%clk 0:00:03]} 0-1


[Site "https://www.chess.com"]

[Event "Titled Tuesday Blitz February 01 B 2022"]
[White "Sydoryka, Vladyslav"]
[Black "Abdrlauf, Elham"]
[WhiteFideId "14145928"]
[BlackFideId "1533533"]
[WhiteElo "2265"]
[BlackElo "2334"]
[Result "0-1"]
[Round "02"]
[TimeControl "180+1"]
[Date "2022.02.01"]
[WhiteClock "0:00:01"]
[BlackClock "0:00:12"]

1. c4 {[%clk 0:02:55]}  e5 {[%clk 0:02:40]} 2. g3 {[%clk 0:02:55]}  Nf6 {[%clk 0:02:40]} 3. Bg2 {[%clk 0:02:54]}  c6 {[%clk 0:02:39]} 4. Nf3 {[%clk 0:02:54]}  e4 {[%clk 0:02:40]} 5. Nd4 {[%clk 0:02:55]}  d5 {[%clk 0:02:40]} 6. d3 {[%clk 0:02:56]}  exd3 {[%clk 0:02:37]} 7. Qxd3 {[%clk 0:02:56]}  dxc4 {[%clk 0:02:32]} 8. Qxc4 {[%clk 0:02:57]}  Be7 {[%clk 0:02:32]} 9. Nc3 {[%clk 0:02:57]}  O-O {[%clk 0:02:33]} 10. O-O {[%clk 0:02:57]}  Nbd7 {[%clk 0:02:17]} 11. Rd1 {[%clk 0:02:49]}  Re8 {[%clk 0:01:59]} 12. Nf5 {[%clk 0:02:39]}  Bf8 {[%clk 0:01:58]} 13. Nd6 {[%clk 0:02:20]}  Bxd6 {[%clk 0:01:50]} 14. Rxd6 {[%clk 0:02:21]}  Qa5 {[%clk 0:01:40]} 15. Bf4 {[%clk 0:02:10]}  Ne5 {[%clk 0:01:34]} 16. Qd4 {[%clk 0:01:30]}  Ng6 {[%clk 0:01:30]} 17. Rd1 {[%clk 0:01:16]}  Be6 {[%clk 0:01:22]} 18. Bc1 {[%clk 0:00:56]}  Qh5 {[%clk 0:01:18]} 19. b3 {[%clk 0:00:29]}  Bh3 {[%clk 0:01:13]} 20. Rxf6 {[%clk 0:00:26]}  gxf6 {[%clk 0:01:06]} 21. Bb2 {[%clk 0:00:16]}  Bxg2 {[%clk 0:00:59]} 22. Kxg2 {[%clk 0:00:12]}  Qe5 {[%clk 0:00:59]} 23. Qd2 {[%clk 0:00:05]}  Qe7 {[%clk 0:00:57]} 24. Qc2 {[%clk 0:00:03]}  Rad8 {[%clk 0:00:57]} 25. Rxd8 {[%clk 0:00:03]}  Qxd8 {[%clk 0:00:53]} 26. Ne4 {[%clk 0:00:04]}  Ne5 {[%clk 0:00:51]} 27. f4 {[%clk 0:00:02]}  Qd5 {[%clk 0:00:50]} 28. fxe5 {[%clk 0:00:02]}  f5 {[%clk 0:00:50]} 29. e6 {[%clk 0:00:01]}  Qxe4+ {[%clk 0:00:50]} 30. Qxe4 {[%clk 0:00:01]}  fxe4 {[%clk 0:00:51]} 31. exf7+ {[%clk 0:00:02]}  Kxf7 {[%clk 0:00:51]} 32. Kf2 {[%clk 0:00:03]}  Ke6 {[%clk 0:00:51]} 33. Ke3 {[%clk 0:00:04]}  Kd5 {[%clk 0:00:52]} 34. Bc3 {[%clk 0:00:04]}  b6 {[%clk 0:00:50]} 35. g4 {[%clk 0:00:04]}  a5 {[%clk 0:00:51]} 36. h4 {[%clk 0:00:05]}  Ra8 {[%clk 0:00:50]} 37. g5 {[%clk 0:00:05]}  a4 {[%clk 0:00:51]} 38. h5 {[%clk 0:00:05]}  axb3 {[%clk 0:00:51]} 39. axb3 {[%clk 0:00:06]}  Ra7 {[%clk 0:00:32]} 40. g6 {[%clk 0:00:02]}  hxg6 {[%clk 0:00:33]} 41. h6 {[%clk 0:00:03]}  Rh7 {[%clk 0:00:27]} 42. Bg7 {[%clk 0:00:02]}  c5 {[%clk 0:00:27]} 43. Kf4 {[%clk 0:00:02]}  Ke6 {[%clk 0:00:16]} 44. Kxe4 {[%clk 0:00:02]}  Kf7 {[%clk 0:00:17]} 45. Kd5 {[%clk 0:00:01]}  g5 {[%clk 0:00:12]} 0-1


[Site "https://www.chess.com"]

[Event "Titled Tuesday Blitz February 01 B 2022"]
[White "Tang, Andrew"]
[Black "Golubev, Mikhail"]
[WhiteFideId "2059630"]
[BlackFideId "14100983"]
[WhiteElo "2584"]
[BlackElo "2374"]
[Result "1-0"]
[Round "02"]
[TimeControl "180+1"]
[Date "2022.02.01"]
[WhiteClock "0:00:07"]
[BlackClock "0:00:05"]

1. d4 {[%clk 0:03:00]}  Nf6 {[%clk 0:02:58]} 2. Nf3 {[%clk 0:03:00]}  d6 {[%clk 0:02:56]} 3. Nbd2 {[%clk 0:03:00]}  g6 {[%clk 0:02:54]} 4. e4 {[%clk 0:03:01]}  Bg7 {[%clk 0:02:54]} 5. Bd3 {[%clk 0:03:01]}  O-O {[%clk 0:02:53]} 6. O-O {[%clk 0:03:01]}  b6 {[%clk 0:02:43]} 7. e5 {[%clk 0:02:34]}  Nfd7 {[%clk 0:02:40]} 8. Re1 {[%clk 0:02:27]}  Bb7 {[%clk 0:02:37]} 9. e6 {[%clk 0:02:17]}  fxe6 {[%clk 0:02:25]} 10. Rxe6 {[%clk 0:00:55]}  c5 {[%clk 0:02:24]} 11. Qe2 {[%clk 0:00:42]}  cxd4 {[%clk 0:02:19]} 12. Rxe7 {[%clk 0:00:29]}  Bf6 {[%clk 0:01:57]} 13. Re4 {[%clk 0:00:23]}  Nc5 {[%clk 0:01:42]} 14. Rf4 {[%clk 0:00:21]}  Nxd3 {[%clk 0:01:33]} 15. Qxd3 {[%clk 0:00:20]}  Nc6 {[%clk 0:01:27]} 16. Ne4 {[%clk 0:00:18]}  Ne5 {[%clk 0:01:15]} 17. Qb3+ {[%clk 0:00:18]}  Kg7 {[%clk 0:01:15]} 18. Nxd4 {[%clk 0:00:18]}  Bc8 {[%clk 0:00:43]} 19. Rxf6 {[%clk 0:00:16]}  Rxf6 {[%clk 0:00:40]} 20. Bg5 {[%clk 0:00:17]}  Ng4 {[%clk 0:00:32]} 21. h3 {[%clk 0:00:11]}  d5 {[%clk 0:00:32]} 22. Nxf6 {[%clk 0:00:09]}  Nxf6 {[%clk 0:00:32]} 23. Re1 {[%clk 0:00:10]}  Qd6 {[%clk 0:00:27]} 24. Qc3 {[%clk 0:00:09]}  Kf7 {[%clk 0:00:12]} 25. Nb5 {[%clk 0:00:09]}  Qd8 {[%clk 0:00:10]} 26. Bxf6 {[%clk 0:00:08]}  Qxf6 {[%clk 0:00:10]} 27. Qc7+ {[%clk 0:00:09]}  Kf8 {[%clk 0:00:10]} 28. Qxh7 {[%clk 0:00:06]}  Be6 {[%clk 0:00:08]} 29. Nc7 {[%clk 0:00:07]}  Bg8 {[%clk 0:00:05]} 30. Qh6+ {[%clk 0:00:07]} 1-0


[Site "https://www.chess.com"]

[Event "Titled Tuesday Blitz February 01 B 2022"]
[White "Van Foreest, Jorden"]
[Black "Fishbein, Alexander"]
[WhiteFideId "1039784"]
[BlackFideId "2000377"]
[WhiteElo "2609"]
[BlackElo "2442"]
[Result "1-0"]
[Round "02"]
[TimeControl "180+1"]
[Date "2022.02.01"]
[WhiteClock "0:02:29"]
[BlackClock "0:00:44"]

1. Nf3 {[%clk 0:03:00]}  Nf6 {[%clk 0:02:54]} 2. g3 {[%clk 0:02:59]}  g6 {[%clk 0:02:53]} 3. b3 {[%clk 0:02:58]}  Bg7 {[%clk 0:02:53]} 4. Bb2 {[%clk 0:02:59]}  O-O {[%clk 0:02:52]} 5. Bg2 {[%clk 0:02:59]}  d6 {[%clk 0:02:51]} 6. d4 {[%clk 0:02:59]}  a5 {[%clk 0:02:49]} 7. a4 {[%clk 0:02:56]}  Nc6 {[%clk 0:02:47]} 8. O-O {[%clk 0:02:56]}  Bf5 {[%clk 0:02:46]} 9. Na3 {[%clk 0:02:54]}  Be4 {[%clk 0:02:44]} 10. Nc4 {[%clk 0:02:51]}  Nb4 {[%clk 0:02:29]} 11. c3 {[%clk 0:02:50]}  Bc2 {[%clk 0:02:25]} 12. Qc1 {[%clk 0:02:49]}  Bxb3 {[%clk 0:02:18]} 13. cxb4 {[%clk 0:02:48]}  axb4 {[%clk 0:02:17]} 14. a5 {[%clk 0:02:48]}  Qd7 {[%clk 0:01:42]} 15. Nfd2 {[%clk 0:02:47]}  Bxc4 {[%clk 0:01:41]} 16. Qxc4 {[%clk 0:02:48]}  d5 {[%clk 0:01:17]} 17. Qxb4 {[%clk 0:02:47]}  c6 {[%clk 0:01:17]} 18. Nb3 {[%clk 0:02:44]}  Ne4 {[%clk 0:01:15]} 19. Bxe4 {[%clk 0:02:39]}  dxe4 {[%clk 0:01:15]} 20. Nc5 {[%clk 0:02:40]}  Qd5 {[%clk 0:01:12]} 21. Qb3 {[%clk 0:02:33]}  Ra7 {[%clk 0:00:53]} 22. Qxd5 {[%clk 0:02:31]}  cxd5 {[%clk 0:00:53]} 23. Rfb1 {[%clk 0:02:31]}  Rfa8 {[%clk 0:00:52]} 24. Bc3 {[%clk 0:02:30]}  e6 {[%clk 0:00:44]} 25. Rxb7 {[%clk 0:02:29]} 1-0


[Site "https://www.chess.com"]